Cogmind - Beta 17.1 @@@ ROGUE MODE // 2026.09.05 @ 04:07:30 Player: Kite Result: Self-destructed Performance ------------- Evolutions (5) 2500 Regions Visited (11) 2200 Robots Destroyed (145) 725 Value Destroyed (3940) 3940 Prototype IDs (24) 480 Alien Tech Used (0) 0 Bonus (1386) 1386 TOTAL SCORE: 11231 Bonus ------- High Alert Combat Kills 92 Follower Combat Kills 194 Registered with UFD 300 Met Optimus in HQ 500 Met Data Miner 300 Cogmind --------- Core Integrity 728/1000 Matter 265/300 Energy 77/315 System Corruption 4% Temperature Cool (0) Movement Core (2850) Ox56 Location -5/Factory Parts ------- > --- POWER (1) -------- Neutrino Core > --- PROPULSION (6) --- (None) > --- UTILITY (6) ------ Cargo Storage Unit Improved Sensor Array Advanced Signal Interpreter Makeshift Ablative Armor > --- WEAPON (4) ------- Heavy Mace Greatsword > --- INVENTORY (30) --- Light Angular Momentum Engine MA-1KR's Cyclogen Huge Storage Unit Matter Compressor (68) Deep Structural Scanner Improved Sensor Array Improved Transmission Jammer Improved Weapon Shielding Improved Weapon Shielding Hacking Suite Advanced Hacking Suite System Shield Component Analysis Suite Improved Grenade Launcher CPS Tube (2) CPS Tube (2) Greatsword Greatsword Makeshift Spear Peak State ------------ > --- POWER ------------ Neutrino Core > --- PROPULSION ------- Wheel Wheel Ballwheel > --- UTILITY ---------- Cargo Storage Unit Improved Sensor Array Advanced Signal Interpreter Melee Analysis Suite Drone Bay > --- WEAPON ----------- Greatsword Greatsword > --- INVENTORY -------- Neutrino Core MA-1KR's Cyclogen Medium Treads Medium Treads Improved Medium Treads Huge Storage Unit Deep Structural Scanner Advanced Terrain Scanner Improved Weapon Shielding Improved Weapon Shielding Makeshift Ablative Armor Makeshift Ablative Armor System Shield Authchip [Weapon] Component Analysis Suite Improved Grenade Launcher CPS Tube CPS Tube Greatsword Greatsword Greatsword Greatsword Greatsword Spear Makeshift Spear [Rating: 74] Favorites ----------- Power Heavy Ion Engine Engine Heavy Ion Engine Power Core Light Nuclear Core Propulsion Light Treads Treads Light Treads Wheel Wheel Utility Large Storage Unit Device Improved Sensor Array Storage Large Storage Unit Processor Melee Analysis Suite Hackware Authchip [Storage] Protection Core Shielding Weapon Chainsword Energy Gun Improved EM Shotgun Energy Cannon Advanced Beam Cannon Ballistic Gun Improved Assault Rifle Launcher Improved Grenade Launcher Impact Weapon Hammer Slashing Weapon Chainsword Piercing Weapon Spear Build | -11 -10 -9 -9 -9 -9 -6 -6 -6 -6 -5 -5 ------- Run | Yrd Mat Mat Sto Rec Scr Fac Low Low Dat Pro Fac Slots Evolved 10 | . . 2 . . . 6 . . . . 2 Power . | . . . . . . . . . . . . Propulsion 4 | . . 2 . . . . . . . . 2 Utility 4 | . . . . . . 4 . . . . . Weapon 2 | . . . . . . 2 . . . . . Parts Attached 118 | 6 10 20 23 1 5 19 . 2 . . 32 Power 12 | 1 2 1 1 . 1 2 . . . . 4 Engine 9 | 1 2 . 1 . 1 2 . . . . 2 Core 3 | . . 1 . . . . . . . . 2 Reactor . | . . . . . . . . . . . . Propulsion 39 | 2 2 7 12 . 3 2 . . . . 11 Treads 28 | 2 . 5 12 . 3 1 . . . . 5 Leg . | . . . . . . . . . . . . Wheel 11 | . 2 2 . . . 1 . . . . 6 Hover . | . . . . . . . . . . . . Flight . | . . . . . . . . . . . . Utility 30 | 1 2 4 1 1 . 8 . 2 . . 11 Device 9 | . 1 . . . . 3 . 1 . . 4 Storage 5 | 1 . 1 1 . . 2 . . . . . Processor 6 | . . . . . . 3 . 1 . . 2 Hackware 5 | . . 2 . 1 . . . . . . 2 Protection 5 | . 1 1 . . . . . . . . 3 Artifact . | . . . . . . . . . . . . Weapon 37 | 2 4 8 9 . 1 7 . . . . 6 Energy Gun 7 | 1 . 3 3 . . . . . . . . Energy Cannon 2 | . . . 2 . . . . . . . . Ballistic Gun 8 | 1 2 2 3 . . . . . . . . Ballistic Cannon . | . . . . . . . . . . . . Launcher 4 | . 1 2 1 . . . . . . . . Special Weapon . | . . . . . . . . . . . . Impact Weapon 4 | . 1 1 . . . 1 . . . . 1 Slashing Weapon 10 | . . . . . . 5 . . . . 5 Piercing Weapon 2 | . . . . . 1 1 . . . . . Special Melee Weapon . | . . . . . . . . . . . . Unidentified Prototypes 5 | . . 1 4 . . . . . . . . Corrupted Parts 5 | . . . 4 1 . . . . . . . System Corruption 16 | . . . 14 2 . . . . . . . Parts Lost 53 | . 5 5 10 . . 8 . . . 2 23 Power 7 | . 2 1 . . . 1 . . . 1 2 Propulsion 28 | . 1 3 7 . . 5 . . . . 12 Utility 7 | . . 1 . . . 1 . . . . 5 Weapon 11 | . 2 . 3 . . 1 . . . 1 4 Highest Loss Streak 14 | . 2 2 3 . . 7 . . . 2 14 To Critical Strikes . | . . . . . . . . . . . . Average Backups 13 | 1 7 8 11 13 11 12 19 19 22 22 23 Power . | . 1 1 . . . 1 2 2 2 1 2 Propulsion 2 | . . . 3 4 3 2 4 4 4 4 1 Utility 5 | . 3 4 3 5 3 3 6 6 9 10 11 Weapon 3 | . 2 2 3 4 2 4 5 5 5 4 6 Tool/Special . | . . . . . . . . . . . . Unused Backups 37 | . 6 1 5 1 8 1 . 1 . . 14 Power 3 | . . . 1 . . . . . . . 2 Propulsion . | . . . . . . . . . . . . Utility 27 | . 6 1 4 1 4 1 . 1 . . 9 Weapon 4 | . . . . . 3 . . . . . 1 Tool/Special 3 | . . . . . 1 . . . . . 2 Average Slot Usage (%) 84 | . 96 82 98 100 84 69 66 66 66 66 72 Engine 6 | . 13 2 9 11 4 4 6 6 6 6 3 Treads 27 | . 19 23 42 44 38 11 . . . . 16 Wheel 3 | . 7 9 . . . 3 6 6 6 6 10 Device 3 | . 12 . . . . 8 6 6 6 6 8 Storage 9 | . 14 11 11 11 9 6 6 6 6 6 5 Processor 3 | . . . . . . 6 20 20 20 20 7 Hackware 3 | . . . . 9 11 1 . . . . . Protection 2 | . . 9 11 1 . . . . . . 3 Energy Gun 1 | . 5 7 4 . . . . . . . . Ballistic Gun 7 | . 20 8 16 22 1 . . . . . . Impact Weapon 2 | . . 5 . . 9 1 . . . . . Slashing Weapon 5 | . . . . . . 20 19 20 20 20 11 Piercing Weapon 2 | . . . . . 8 1 . . . . . Peak Build Rating 74 | 6 8 15 17 21 24 63 63 67 66 68 74 Average Rating 30 | 4 7 11 15 19 17 48 62 64 66 64 65 On Entrance 34 | . 6 7 14 17 20 24 63 63 66 66 63 Avg Prop Armor Cover (%) 9 | . . 15 7 . . . . . . . 6 Naked Turns . | . . . . . . . . . . . . Heaviest Build 171 | 14 16 22 38 35 34 162 164 161 161 161 171 Greatest Support 137 | 40 40 60 80 80 80 83 35 35 35 35 137 Greatest Overweight (x) 16 | . 1 3 1 . . 4 4 4 4 4 16 Average Overweight (x) 1 | . . . . . . 2 4 4 4 4 3 Largest Inventory Capacity 30 | 8 8 10 15 15 15 30 30 30 30 30 30 Average Capacity 17 | 7 8 9 12 15 13 24 30 30 30 30 30 Most Carried 30 | 2 8 10 15 14 15 20 19 22 22 24 30 Average Carried 14 | 1 7 8 11 13 12 14 19 19 22 22 26 Final Capacity 30 | 8 8 10 15 15 15 30 30 30 30 30 30 Final Carried 22 | 2 8 9 13 14 15 19 19 22 22 22 21 Class Distribution -------------------- 38% | Commander-Mutant 18% | Scavenger-Mutant 18% | Hauler-Gladiator 15% | Mutant 7% | Hauler-Mutant Dominant Class ---------------- Mutant | -10/Materials Scavenger-Mutant | -9/Materials Scavenger-Mutant | -9/Storage Commander-Mutant | -9/Recycling Commander-Mutant | -9/Scraptown Hauler-Gladiator | -6/Factory Hauler-Gladiator | -6/Lower Caves Hauler-Gladiator | -6/Lower Caves Hauler-Gladiator | -6/Data Miner Hauler-Gladiator | -5/Proximity Caves Hauler-Mutant | -5/Factory Resources | -11 -10 -9 -9 -9 -9 -6 -6 -6 -6 -5 -5 ----------- Run | Yrd Mat Mat Sto Rec Scr Fac Low Low Dat Pro Fac Matter Collected 3365 | . 691 539 906 135 192 200 44 151 . 38 469 Remotely . | . . . . . . . . . . . . Salvage Created 5279 | . 791 815 1490 105 . 815 93 . . . 1170 Parts 312 | . 52 41 92 8 . 45 5 . . . 69 Haulers Intercepted 13 | . 2 3 6 . . 1 . . . . 1 Recyclers Shooed 10 | . 3 1 2 . . . . . . . 4 Parts Field Recycled . | . . . . . . . . . . . . Retrieved Matter . | . . . . . . . . . . . . Parts Self-Destructed 10 | . . . . . . . 8 . . 2 . Prevented . | . . . . . . . . . . . . Parts Restored . | . . . . . . . . . . . . Kills | -11 -10 -9 -9 -9 -9 -6 -6 -6 -6 -5 -5 ------- Run | Yrd Mat Mat Sto Rec Scr Fac Low Low Dat Pro Fac Combat Hostiles Destroyed 93 | . 16 15 28 2 . 10 6 . . . 16 Melee 29 | . . . . . . 10 3 . . . 16 Guns 42 | . 13 9 18 2 . . . . . . . AOE 20 | . 3 5 9 . . . 3 . . . . Classes Destroyed 15 | . 8 2 2 . . 2 . . . . 1 Worker 16 | . 6 . 3 . . 3 . . . . 4 Builder 8 | . . 1 1 . . 1 . . . . 5 Tunneler 2 | . . . . . . 2 . . . . . Hauler 13 | . 2 3 6 . . 1 . . . . 1 Recycler 6 | . 3 3 . . . . . . . . . Mechanic 2 | . 1 . 1 . . . . . . . . Operator 2 | . 1 . . . . . . . . . 1 Watcher 3 | . 2 . 1 . . . . . . . . Swarmer 23 | . 8 7 . . . . 6 . . . 2 Grunt 43 | . 8 4 18 . . 7 . . . . 6 Brawler 2 | . . . 1 . . . . . . . 1 Duelist 1 | . . . 1 . . . . . . . . Sentry 15 | . . 4 8 2 . 1 . . . . . Hunter 5 | . . . . . . 2 . . . . 3 Programmer 4 | . . . . . . . . . . . 4 Best Kill Streak 9 | . 7 5 5 1 . 3 3 . . . 9 Combat Bots Only 9 | . 4 5 4 1 . 3 3 . . . 9 Max Kills in Single Turn 3 | . 1 3 2 1 . 1 2 . . . 1 Gunslinging . | . . . . . . . . . . . . Exploded 3 | . 1 3 1 . . . 2 . . . . Melee 1 | . . . . . . 1 1 . . . 1 Uniques/NPCs Destroyed . | . . . . . . . . . . . . Combat | -11 -10 -9 -9 -9 -9 -6 -6 -6 -6 -5 -5 -------- Run | Yrd Mat Mat Sto Rec Scr Fac Low Low Dat Pro Fac Hostile Shots Fired 734 | . 118 67 118 12 8 125 21 . . . 265 Missed 157 | . 27 14 33 1 3 19 7 . . . 53 Hits 577 | . 91 53 85 11 5 106 14 . . . 212 Melee 15 | . . . 11 . . . . . . . 4 Projectile 562 | . 91 53 74 11 5 106 14 . . . 208 Critical Strikes 13 | . 1 1 2 2 . 1 1 . . . 5 Damage Taken 9145 | . 991 719 1562 161 89 1486 201 . . 282 3654 Core 1157 | . 233 82 124 29 6 339 72 . . . 272 Absorbed by Shields . | . . . . . . . . . . . . Redirected to Shielding 45 | . . 15 27 3 . . . . . . . Ignored by Resistances 45 | . . . . . . 45 . . . . . Regen/Repaired (Parts) 132 | . . . . . . . . . . . 132 Core Remaining (%) 49 | 100 6 . . . 39 . . . . 51 . Volleys Fired 244 | . 93 40 95 14 . . 2 . . . . Largest 2 | . 2 2 2 2 . . 1 . . . . Hottest 112 | . 70 112 101 46 . . 36 . . . . Shots Fired 443 | . 164 72 175 30 . . 2 . . . . Gun 419 | . 156 70 163 30 . . . . . . . Cannon . | . . . . . . . . . . . . Launcher 24 | . 8 2 12 . . . 2 . . . . Special . | . . . . . . . . . . . . Kinetic 336 | . 133 36 137 30 . . . . . . . Thermal 60 | . 23 34 3 . . . . . . . . Explosive 24 | . 8 2 12 . . . 2 . . . . Electromagnetic 23 | . . . 23 . . . . . . . . Robot Hit Streak 16 | . 13 12 16 9 . . . . . . . Robot Miss Streak 6 | . 5 4 6 3 . . . . . . . Penetration Max . | . . . . . . . . . . . . Secondary Targets 3 | . . . 3 . . . . . . . . Max Gunslinging Chain 1 | . . . 1 . . . . . . . . Shots Hit Robots 400 | . 87 58 127 20 . 41 5 . . . 62 Core Hits 198 | . 47 30 66 6 . 19 5 . . . 25 Critical Kills . | . . . . . . . . . . . . Critical Parts Destroyed 2 | . . 1 1 . . . . . . . . Critical Strikes 16 | . 1 2 2 . . 2 . . . . 9 Burn 2 | . 1 1 . . . . . . . . . Destroy 1 | . . . 1 . . . . . . . . Smash 2 | . . 1 1 . . . . . . . . Sever 11 | . . . . . . 2 . . . . 9 Melee Attacks 197 | . 2 19 5 . 5 58 11 . . 3 94 Impact 31 | . 2 19 5 . 2 2 . . . . 1 Slashing 162 | . . . . . . 55 11 . . 3 93 Piercing 4 | . . . . . 3 1 . . . . . Sneak Attacks 31 | . . 3 . . . 7 1 . . . 20 Combat Hostiles 3 | . . . . . . . 1 . . . 2 Follow-up Attacks 25 | . . 2 . . . 11 1 . . . 11 Damage Inflicted 13109 | . 1641 1426 3113 315 . 1946 545 . . . 4123 Guns 3969 | . 1143 723 1806 297 . . . . . . . Cannons . | . . . . . . . . . . . . Explosions 2435 | . 489 398 1292 . . . 256 . . . . Melee 6678 | . . 305 15 . . 1946 289 . . . 4123 Ramming 27 | . 9 . . 18 . . . . . . . Kinetic 3181 | . 939 370 1575 297 . . . . . . . Thermal 677 | . 204 353 120 . . . . . . . . Explosive 2332 | . 489 398 1189 . . . 256 . . . . Electromagnetic 214 | . . . 214 . . . . . . . . Impact 404 | . . 305 15 . . 36 . . . . 48 Slashing 6244 | . . . . . . 1880 289 . . . 4075 Piercing 30 | . . . . . . 30 . . . . . Highest Corruption 17 | . 1 . 15 17 . . . . . 6 4 Average Corruption 8 | . 1 . 9 16 . . . . . 6 2 Corruption Purged . | . . . . . . . . . . . . Corruption Blocked . | . . . . . . . . . . . . Effects 112 | . 4 . 29 49 . . . . . 4 26 Message Errors 28 | . 2 . 11 10 . . . . . . 5 Matter Fused 27 | . 1 . 5 12 . . . . . 1 8 Heat Flow Errors 15 | . . . 4 6 . . . . . . 5 Energy Discharges 9 | . . . 1 5 . . . . . 1 2 Parts Fused 2 | . . . 1 1 . . . . . . . Data Loss (minor) 18 | . . . 4 9 . . . . . 1 4 Data Loss (major) 7 | . . . 2 2 . . . . . 1 2 Misfires 3 | . 1 . . 2 . . . . . . . Alerts 2 | . . . . 2 . . . . . . . Weapon Failures 1 | . . . 1 . . . . . . . . Overload Shots . | . . . . . . . . . . . . Overflow Damage 1154 | . 2 121 67 . . 72 108 . . . 784 Projectiles . | . . . . . . . . . . . . Explosions 90 | . 2 4 52 . . . 32 . . . . Melee 1064 | . . 117 15 . . 72 76 . . . 784 Knockbacks 1 | . . 1 . . . . . . . . . Impact 1 | . . 1 . . . . . . . . . Kinetic . | . . . . . . . . . . . . Secondary . | . . . . . . . . . . . . Self-Inflicted Damage 253 | . 51 70 132 . . . . . . . . Shots 7 | . 2 2 3 . . . . . . . . Rammed 5 | . 1 . . 4 . . . . . . . Targets Rammed 5 | . 1 . . 4 . . . . . . . Kicked . | . . . . . . . . . . . . Crushed . | . . . . . . . . . . . . Highest Temperature 242 | . 171 126 242 229 . . . . . . 200 Average Temperature 67 | . 75 43 60 86 . . . . . . 83 Received Heat Transfer 1512 | . 336 219 408 90 36 177 . . . . 246 Effects 1 | . . . . 1 . . . . . . . Energy Bleed 1 | . . . . 1 . . . . . . . Siege Activations . | . . . . . . . . . . . . Martial Activations . | . . . . . . . . . . . . Shielding Activations . | . . . . . . . . . . . . Robots Disrupted . | . . . . . . . . . . . . Combat Hostiles . | . . . . . . . . . . . . Robots Corrupted 4 | . . 3 1 . . . . . . . . Combat Hostiles 2 | . . 1 1 . . . . . . . . Parts Fried 7 | . . 6 1 . . . . . . . . Impact Corruptions 7 | . . 6 1 . . . . . . . . Robots Melted . | . . . . . . . . . . . . Combat Hostiles . | . . . . . . . . . . . . Parts Melted 3 | . 1 2 . . . . . . . . . Heat Transferred 1705 | . 666 852 187 . . . . . . . . Parts Sabotaged . | . . . . . . . . . . . . Parts Stolen . | . . . . . . . . . . . . Parts Stripped . | . . . . . . . . . . . . Power Chain Reactions 2 | . . . 2 . . . . . . . . Alert | -11 -10 -9 -9 -9 -9 -6 -6 -6 -6 -5 -5 ------- Run | Yrd Mat Mat Sto Rec Scr Fac Low Low Dat Pro Fac Maximum Alert Level 2 | . 1 1 2 1 . . . . . . . Low Security (%) 75 | 100 94 77 25 76 . 100 . . . . 100 Level 1 13 | . 5 22 25 23 . . . . . . . Level 2 11 | . . . 48 . . . . . . . . Level 3 . | . . . . . . . . . . . . Level 4 . | . . . . . . . . . . . . Level 5 . | . . . . . . . . . . . . High Security . | . . . . . . . . . . . . Max Security . | . . . . . . . . . . . . Peak Influence 614 | . 207 287 614 243 . 111 . . . . 190 Initial 214 | . . 83 109 214 . . . . . . . Average 156 | . 86 135 368 147 . 29 . . . . 62 Influence Increases 3528 | . 577 512 1136 295 . 317 155 . . . 536 Destroy 0b10 Robot/C 1960 | . 320 300 640 60 . 200 120 . . . 320 Destroy 0b10 Robot/NC 270 | . 75 35 70 . . 35 . . . . 55 Destroy Leader 444 | . 68 86 186 . . 32 20 . . . 52 Allied During Kill 92 | . . . 67 25 . . . . . . . Successful Hack 15 | . 7 . . . . . . . . . 8 Select Force Hacks 240 | . 30 . . 210 . . . . . . . Disable Machine 150 | . 15 30 45 . . 15 . . . . 45 Destroy Structure 192 | . 32 31 98 . . 5 . . . . 26 Partial Spotted 15 | . . . 15 . . . . . . . . Lose Combat Pursuer 150 | . 30 30 15 . . 30 15 . . . 30 Influence Decreases 3528 | . 380 450 844 793 53 229 194 49 . . 536 Entered New Map 698 | . . 114 150 337 53 . 34 10 . . . Time Decay 2349 | . 330 286 534 416 . 203 160 39 . . 381 Lost Part 381 | . 50 50 100 . . 26 . . . . 155 Lost Ally 100 | . . . 60 40 . . . . . . . Squads Dispatched 22 | . 2 2 6 . . 5 . . . . 7 Investigation 4 | . 1 . . . . 2 . . . . 1 Extermination 3 | . . . . . . 1 . . . . 2 Reinforcement 13 | . 1 2 4 . . 2 . . . . 4 Assault 2 | . . . 2 . . . . . . . . Garrison . | . . . . . . . . . . . . Intercept . | . . . . . . . . . . . . Searches Triggered . | . . . . . . . . . . . . Construction Impeded 1 | . . . 1 . . . . . . . . Haulers Reinforced 1 | . . . . . . . . . . . 1 Active Scanning Responses . | . . . . . . . . . . . . Cargo Convoy Interrupts . | . . . . . . . . . . . . Stealth | -11 -10 -9 -9 -9 -9 -6 -6 -6 -6 -5 -5 --------- Run | Yrd Mat Mat Sto Rec Scr Fac Low Low Dat Pro Fac Distress Signals 10 | . 1 3 4 . . 2 . . . . . Communications Jammed . | . . . . . . . . . . . . Distress Signals . | . . . . . . . . . . . . Times Spotted 148 | . 28 24 36 3 11 15 6 . . . 25 Peak Tracking Total 8 | . 4 6 6 1 3 5 3 . . . 8 Tactical Retreats 7 | . 2 1 1 . . 1 1 . . . 1 Traps | -11 -10 -9 -9 -9 -9 -6 -6 -6 -6 -5 -5 ------- Run | Yrd Mat Mat Sto Rec Scr Fac Low Low Dat Pro Fac Traps Triggered 9 | . 3 . 3 . . . . . . . 3 Indirectly . | . . . . . . . . . . . . Trap Hack Attempts . | . . . . . . . . . . . . Triggered . | . . . . . . . . . . . . Disarmed . | . . . . . . . . . . . . Reprogrammed . | . . . . . . . . . . . . Reused . | . . . . . . . . . . . . Traps Extracted . | . . . . . . . . . . . . Installed . | . . . . . . . . . . . . Triggered . | . . . . . . . . . . . . Machines | -11 -10 -9 -9 -9 -9 -6 -6 -6 -6 -5 -5 ---------- Run | Yrd Mat Mat Sto Rec Scr Fac Low Low Dat Pro Fac Machines Disabled 11 | . 1 2 3 . 1 1 . . . . 3 Max in Single Turn 1 | . 1 1 1 . 1 1 . . . . 1 Garrison Access 1 | . . . 1 . . . . . . . . Machines Repaired . | . . . . . . . . . . . . Machines Dismantled . | . . . . . . . . . . . . Machines Sabotaged . | . . . . . . . . . . . . Overloaded Fab Kills . | . . . . . . . . . . . . Hacking | -11 -10 -9 -9 -9 -9 -6 -6 -6 -6 -5 -5 --------- Run | Yrd Mat Mat Sto Rec Scr Fac Low Low Dat Pro Fac Machines Accessed 32 | . 3 2 5 8 2 2 . . 4 . 6 Terminals 11 | . 2 2 4 1 . . . . . . 2 Fabricators 3 | . . . . . . 1 . . . . 2 Repair Stations 1 | . . . . . . . . . . . 1 Recycling Units 9 | . 1 . . 7 . . . . . . 1 Scanalyzers 1 | . . . . . . 1 . . . . . Garrison Access 1 | . . . 1 . . . . . . . . Total Hacks 106 | . 6 4 7 13 22 7 . . 32 . 15 Successful 83 | . 2 1 5 8 22 6 . . 32 . 7 Failed 23 | . 4 3 2 5 . 1 . . . . 8 Catastrophic 3 | . 1 . 1 . . . . . . . 1 Database Lockouts . | . . . . . . . . . . . . Manual 34 | . 6 1 4 12 . . . . . . 11 Terminals 24 | . 5 4 5 3 . . . . . . 7 Fabricators 8 | . . . . . . 4 . . . . 4 Repair Stations 2 | . . . . . . . . . . . 2 Recycling Units 13 | . 1 . . 10 . . . . . . 2 Scanalyzers 3 | . . . . . . 3 . . . . . Garrison Access 2 | . . . 2 . . . . . . . . Terminal Hacks 60 | . 1 1 3 . 22 . . . 32 . 1 Record 32 | . . . . . 21 . . . 11 . . Part Schematic 15 | . 1 . 1 . . . . . 13 . . Robot Schematic 5 | . . . . . . . . . 5 . . Prototype ID Bank 3 | . . . . . . . . . 3 . . Open Door 2 | . . . 2 . . . . . . . . Branch Access Points 1 | . . 1 . . . . . . . . . Fabricator Index 1 | . . . . . . . . . . . 1 Proto ID Catalog 1 | . . . . . 1 . . . . . . Fabricator Hacks 6 | . . . . . . 4 . . . . 2 Load Schematic 3 | . . . . . . 2 . . . . 1 Build 3 | . . . . . . 2 . . . . 1 Repair Station Hacks 2 | . . . . . . . . . . . 2 Scan Component 1 | . . . . . . . . . . . 1 Repair 1 | . . . . . . . . . . . 1 Recycling Unit Hacks 1 | . . . . 1 . . . . . . . Retrieve Components 1 | . . . . 1 . . . . . . . Scanalyzer 2 | . . . . . . 2 . . . . . Insert Component 1 | . . . . . . 1 . . . . . Analyze 1 | . . . . . . 1 . . . . . Garrison Access Hacks 1 | . . . 1 . . . . . . . . Seal Access 1 | . . . 1 . . . . . . . . Unauthorized Hacks 11 | . 1 . 1 7 . . . . . . 2 Terminals 2 | . . . 1 . . . . . . . 1 Botnet 2 | . . . 1 . . . . . . . 1 Fabricators 1 | . . . . . . . . . . . 1 Recompile 1 | . . . . . . . . . . . 1 Repair Stations . | . . . . . . . . . . . . Recycling Units 8 | . 1 . . 7 . . . . . . . Tunnel 8 | . 1 . . 7 . . . . . . . Scanalyzers . | . . . . . . . . . . . . Garrison Access . | . . . . . . . . . . . . Data Cores Recovered . | . . . . . . . . . . . . Used . | . . . . . . . . . . . . Hacking Detections 15 | . 2 2 3 2 . 2 . . . . 4 Full Trace Events 5 | . 1 1 . 1 . 2 . . . . . Feedback Events 2 | . 1 1 . . . . . . . . . Corruption 1 | . 1 . . . . . . . . . . Hackware Fried 1 | . . 1 . . . . . . . . . Feedback Blocked . | . . . . . . . . . . . . Robot Schematics Acquired 5 | . . . . . . . . . 5 . . Robots Built . | . . . . . . . . . . . . Authchips . | . . . . . . . . . . . . Time . | . . . . . . . . . . . . Total Robot Build Rating . | . . . . . . . . . . . . Part Schematics Acquired 15 | . 1 . 1 . . . . . 13 . . Parts Built 3 | . . . . . . 2 . . . . 1 Authchips 2 | . . . . . . 1 . . . . 1 Time 219 | . . . . . . 50 . . . . 169 Total Part Build Rating 8 | . . . . . . 2 . . . . 6 Part Studies Acquired . | . . . . . . . . . . . . Parts Repaired 1 | . . . . . . . . . . . 1 Time 44 | . . . . . . . . . . . 44 Parts Recycled . | . . . . . . . . . . . . Recycled Matter . | . . . . . . . . . . . . Retrieved Matter . | . . . . . . . . . . . . Retrieved Components 2 | . . . . 2 . . . . . . . Parts Scanalyzed 1 | . . . . . . 1 . . . . . Part Schematics Acquired . | . . . . . . . . . . . . Parts Damaged . | . . . . . . . . . . . . Bothacking | -11 -10 -9 -9 -9 -9 -6 -6 -6 -6 -5 -5 ------------ Run | Yrd Mat Mat Sto Rec Scr Fac Low Low Dat Pro Fac Used RIF Installer . | . . . . . . . . . . . . Robots Hacked . | . . . . . . . . . . . . Non-combat . | . . . . . . . . . . . . Combat . | . . . . . . . . . . . . Robot Hacks Applied . | . . . . . . . . . . . . Relay Couplers Released . | . . . . . . . . . . . . Fabnet Peak Effective % . | . . . . . . . . . . . . Robots Rewired . | . . . . . . . . . . . . Allies Hacked . | . . . . . . . . . . . . Hacks Repelled . | . . . . . . . . . . . . Allies | -11 -10 -9 -9 -9 -9 -6 -6 -6 -6 -5 -5 -------- Run | Yrd Mat Mat Sto Rec Scr Fac Low Low Dat Pro Fac Total Allies 13 | . . . 12 . 1 . . . . . . Largest Group 10 | . . . 10 9 7 . . . . . . Highest-Rated Group 88 | . . . 88 80 64 . . . . . . Highest-Rated Ally 31 | . . . 31 16 25 . . . . . . Total Orders 5 | . . . . . 2 . . . . . 3 STAY 2 | . . . . . 2 . . . . . . EXPLORE 3 | . . . . . . . . . . . 3 Ally Attacks 84 | . . . 36 14 34 . . . . . . Total Damage 923 | . . . 403 153 367 . . . . . . Kills 10 | . . . 6 1 3 . . . . . . Allies Corrupted . | . . . . . . . . . . . . Allies Melted . | . . . . . . . . . . . . Intel | -11 -10 -9 -9 -9 -9 -6 -6 -6 -6 -5 -5 ------- Run | Yrd Mat Mat Sto Rec Scr Fac Low Low Dat Pro Fac Active Infowar (turns) 3636 | . 876 22 . . . 455 321 502 70 217 1173 Optics 1224 | . . . . . . 100 321 502 70 217 14 Sensors 2355 | . . . . . . 169 321 446 70 216 1133 Structural 343 | . . . . . . 286 . 56 . 1 . Seismic 898 | . 876 22 . . . . . . . . . Jamming 40 | . . . . . . . . . . . 40 Robot Analysis Total . | . . . . . . . . . . . . Derelict Logs Recovered 1 | . . . . . . . . . . 1 . Drone Launches 3 | . . . . . . . . . . . 3 Drone Recoveries 3 | . . . . . . . . . . . 3 Exploration | -11 -10 -9 -9 -9 -9 -6 -6 -6 -6 -5 -5 ------------- Run | Yrd Mat Mat Sto Rec Scr Fac Low Low Dat Pro Fac Turns Passed 9878 | 75 981 628 1502 1000 2491 682 321 502 70 217 1409 Spaces Moved 5770 | 42 503 348 652 584 1671 374 297 500 78 210 511 Core 466 | 2 . 2 . . 462 . . . . . . Treads 3205 | 40 313 105 652 584 1209 113 . . . . 189 Legs . | . . . . . . . . . . . . Wheels 2099 | . 190 241 . . . 261 297 500 78 210 322 Hover . | . . . . . . . . . . . . Flight . | . . . . . . . . . . . . Fastest Speed 50 | 50 80 80 160 160 50 50 90 90 90 90 90 Average Speed 130 | 154 129 112 160 160 129 113 90 90 90 90 173 Slowest Speed 720 | 160 160 200 240 160 160 246 90 90 90 90 720 Overloaded Moves . | . . . . . . . . . . . . Propulsion Burnouts . | . . . . . . . . . . . . Robots Hopped . | . . . . . . . . . . . . Potential Cave-ins . | . . . . . . . . . . . . Cave-ins Triggered 1 | . . . . . . . . . . 1 . Exploration Rate (%) 52 | 3 77 32 92 84 67 12 52 74 74 49 19 Regions Visited 11 Branch Regions 7 Pre-discovered Areas 13 | . 1 . . 7 4 . . . 1 . . Known Exits Taken 6 | . . 1 . . . 1 1 1 1 1 . Unknown Exits Taken 5 | 1 1 . 1 1 1 . . . . . . Scrap Searched 7 | . . . . . 3 . . 3 . 1 . Spaces Dug 29 | . 1 2 . . . 5 5 . . 3 13 Terrain Destroyed 185 | . 35 26 86 . . 5 17 . . 3 13 Melee 29 | . 1 2 . . . 5 5 . . 3 13 Projectile . | . . . . . . . . . . . . AOE 156 | . 34 24 86 . . . 12 . . . . Terrain Rammed . | . . . . . . . . . . . . Walls Destroyed . | . . . . . . . . . . . . Machines Disabled . | . . . . . . . . . . . . Actions | -11 -10 -9 -9 -9 -9 -6 -6 -6 -6 -5 -5 --------- Run | Yrd Mat Mat Sto Rec Scr Fac Low Low Dat Pro Fac Total 7344 | 49 659 482 926 620 1997 562 329 543 77 232 868 Wait 755 | . 19 20 107 13 255 84 20 22 . 14 201 Move 5759 | 41 502 347 651 583 1670 373 296 499 77 209 511 Hop . | . . . . . . . . . . . . Pick Up 125 | 2 14 13 18 3 27 22 . 4 . 2 20 Fast Attach 67 | 6 12 14 11 . 7 6 . . . . 11 Attach 54 | . 1 5 8 1 2 16 . . . 2 19 Detach 9 | . . . 1 . . 4 . . . . 4 Swap 65 | . 6 7 12 . 4 4 2 17 . 2 11 Drop 100 | . 9 19 17 2 27 12 . 1 . . 13 Fire 244 | . 93 40 95 14 . . 2 . . . . Melee 160 | . 2 17 5 . 5 41 9 . . 3 78 Ram . | . . . . . . . . . . . . Kick . | . . . . . . . . . . . . Crush 5 | . 1 . . 4 . . . . . . . Escape Stasis . | . . . . . . . . . . . . Rewire 1 | . . . 1 . . . . . . . . Trap . | . . . . . . . . . . . . Miscellaneous . | . . . . . . . . . . . . Route ------- -11/Scrapyard -10/Materials (discovered 2 exits: *Mat / [*Min]) -9/Materials (discovered 2 exits: *Min / *Sto) -9/Storage (discovered 2 exits: [*Mat] / *Rec) -9/Recycling (discovered 2 exits: [*Fac] / *Scr) -9/Scraptown -6/Factory (discovered 3 exits: Fac / *Low x2) -6/Lower Caves -6/Lower Caves (discovered 2 exits: Fac / *Dat) -6/Data Miner -5/Proximity Caves -5/Factory (discovered 1 exit: *Upp) History --------- Turn | Location | Event 17 | -11/Scrapyard | Discovered new exit (range 16) 76 | -11/Scrapyard | Entered Materials 315 | -10/Materials | Build established: Mutant 570 | -10/Materials | Core integrity fell below 50% 702 | -10/Materials | Discovered new exit (range 12) 776 | -10/Materials | Derelicts attacked the area 993 | -10/Materials | Core integrity fell below 20% 1051 | -10/Materials | Discovered new exit (range 8) 1057 | -10/Materials | Entered another Materials area 1057 | -9/Materials | Evolved 2 slots: Propulsion x2 1098 | -9/Materials | Identified exit to Mines 1098 | -9/Materials | Identified exit to Storage 1098 | -9/Materials | Hacking Suite fried by hacking feedback 1685 | -9/Materials | Entered Storage 1722 | -9/Storage | Build established: Scavenger-Mutant 2191 | -9/Storage | Lost 3 parts (1n2w) 2392 | -9/Storage | Met a pair of Derelict thieves 2653 | -9/Storage | Used back door to open Recycling access 2653 | -9/Storage | Discovered new exit (range 5) 2751 | -9/Storage | System corruption reached 10% 2772 | -9/Storage | Lost 3 parts (3n) 2794 | -9/Storage | Assisted by bots powering up and referring to "LRC-V3" 2831 | -9/Storage | Core integrity fell below 50% 2928 | -9/Storage | Discovered new exit (range 6) 3089 | -9/Storage | Build established: Commander-Mutant 3187 | -9/Storage | Entered Recycling 3187 | -9/Recycling | Accompanied by 9 allies 3924 | -9/Recycling | Discovered new exit (range 16) 4134 | -9/Recycling | Scanned before Scraplab entrance 4158 | -9/Recycling | Entered Scraplab 4172 | -9/Recycling | Discovered new exit (range 3) 4187 | -9/Recycling | Entered Scraptown 4187 | -9/Scraptown | Accompanied by 7 allies 4187 | -9/Scraptown | System corruption cleaned by C-Scrubber 4471 | -9/Scraptown | Visited UFD Registry 4471 | -9/Scraptown | Registered with UFD as "Fissionskull" 4527 | -9/Scraptown | Visited Junk Repository 4583 | -9/Scraptown | Visited Junk Cannon Lab 4786 | -9/Scraptown | Visited Curators Association 4831 | -9/Scraptown | Visited Scrapoid Pod Storage 4840 | -9/Scraptown | Found Scrapoid Pod 4883 | -9/Scraptown | Visited Cartography Club 4916 | -9/Scraptown | Visited Botcube Research 4971 | -9/Scraptown | Visited Science Guys 5163 | -9/Scraptown | Learned location of Mines (-8) 5163 | -9/Scraptown | Learned location of Storage (-9) 5163 | -9/Scraptown | Learned location of Archives (-5) 5163 | -9/Scraptown | Learned 12 Materials zone layouts 5163 | -9/Scraptown | Learned 8 Factory zone layouts 5163 | -9/Scraptown | Learned 16 Factory zone layouts 5163 | -9/Scraptown | Learned 8 Research zone layouts 5163 | -9/Scraptown | Learned 8 Lower Caves zone layouts 5163 | -9/Scraptown | Learned 12 Upper Caves zone layouts 5163 | -9/Scraptown | Learned 20 Upper Caves zone layouts 5163 | -9/Scraptown | Learned 24 Upper Caves zone layouts 5163 | -9/Scraptown | Learned 12 Proximity Caves zone layouts 5163 | -9/Scraptown | Learned 4 Armory zone layouts 5163 | -9/Scraptown | Learned location of 2 exits from Lower Caves 5163 | -9/Scraptown | Learned location of 1 exit from Upper Caves 5163 | -9/Scraptown | Learned location of 2 exits from Upper Caves 5183 | -9/Scraptown | Found Deep Structural Scanner 5218 | -9/Scraptown | Discovered new exit (range 3) 6138 | -9/Scraptown | Met Optimus 6138 | -9/Scraptown | Accepted into 0bPrime 6512 | -9/Scraptown | Civil war broke out across Scraptown 6519 | -9/Scraptown | Found Ballwheel 6533 | -9/Scraptown | Found MA-1KR's Cyclogen 6569 | -9/Scraptown | Found Deep Structural Scanner 6573 | -9/Scraptown | Lost 3 allies 6634 | -9/Scraptown | Botcube activated 6666 | -9/Scraptown | Optimus destroyed in the chaos of civil war 6678 | -9/Scraptown | Entered Factory 6678 | -6/Factory | Evolved 6 slots: Utility x4, Weapon x2 6679 | -6/Factory | Identified exit to Lower Caves 6680 | -6/Factory | Identified exit to Factory 6895 | -6/Factory | Fabricated Cargo Storage Unit (x1) 6920 | -6/Factory | Fabricated Huge Storage Unit (x1) 7011 | -6/Factory | Lost 7 parts (1p5n1u) 7281 | -6/Factory | Build established: Hauler-Gladiator 7360 | -6/Factory | Entered Lower Caves 7361 | -6/Lower Caves | Identified exit to Lower Caves 7420 | -6/Lower Caves | Attracted the attention of an 0b10 checkpoint 7681 | -6/Lower Caves | Entered another Lower Caves area 7682 | -6/Lower Caves | Identified exit to Data Miner 8153 | -6/Lower Caves | Encountered a Warlord checkpoint 8183 | -6/Lower Caves | Entered Data Miner 8183 | -6/Data Miner | Discovered new exit (range 6) 8195 | -6/Data Miner | Met Data Miner 8217 | -6/Data Miner | Learned location of Section 7 (-3) 8217 | -6/Data Miner | Acquired the access code to Warlord's prototype stash 8232 | -6/Data Miner | Received God Mode back door access code from Data Miner 8252 | -6/Data Miner | Identified exit to Proximity Caves 8253 | -6/Data Miner | Entered Proximity Caves 8329 | -5/Proximity Caves | Encountered a Derelict sapper outpost 8342 | -5/Proximity Caves | Crushed by falling debris 8420 | -5/Proximity Caves | Learned Factory stockpile data 8470 | -5/Proximity Caves | Entered Factory 8470 | -5/Factory | Evolved 2 slots: Propulsion x2 8530 | -5/Factory | Repaired Greatsword 8714 | -5/Factory | Discovered new exit (range 39) 8842 | -5/Factory | Destroyed 9 combat bots 8892 | -5/Factory | Lost 8 parts (3n3u2w) 9149 | -5/Factory | Build established: Hauler-Mutant 9211 | -5/Factory | Identified exit to Upper Caves 9775 | -5/Factory | Fabricated Kinetic Spear? 9879 | -5/Factory | Self-destructed Last Messages --------------- 09868_ Critical hit (Destroy). 09868_ Penetrated by Slug. 09871_ Imp. Medium Treads destroyed. 09871_ Penetrated by Slug. 09871_ Wheel destroyed. 09871_ Slug penetrates Wall. 09871_ Penetrated by Slug. 09871_ Med. Treads destroyed. 09873_ Slug penetrates Wall. 09874_ Penetrated by Slug. 09874_ Lgt. Angular Momentum Engine destroyed. 09874_ Penetrated by Slug. 09875_ System corrupted: Energy discharge (-32). 09875_ Penetrated by Slug. 09877_ Imp. Treads destroyed. 09877_ Penetrated by Slug. 09878_ Med. Treads destroyed. 09878_ Penetrated by Slug. 09878_ Mak. Ablative Armor destroyed. 09879_ Med. Treads destroyed. Map ----- +----------------------------------------------------+ | #?# #???????????????????????? | | #?#####+############+#######????????????????????? | | #???? ????# #????????????????????? | | #?? """" """??# """" """" #????????????????????? | | ## """" """" # """" """" #????????????????????? | | ## """" """" # """" """" #????????????????????? | | ## """" """"?# """" """"??????????????????????? | | ## """" """??# """" """"???????##############?? | | ## """" """" #????"" """????????# #?? | | + #?????? ?????????# #?? | | ## #?????? ?????????# #?? | | #? #?????? ?????????# #?? | | #?? #?????? ?????????# +?? | | #?? #??????? ??????????# #?? | | #??#############?????????????????# #?? | | #?# #????????????????# #?? | | #?# """ """ #????????????????# #?? | | #?# """ """ #????????????????# #?? | | ??? """ [! """ ?????????????????# #?? | | ????? [ ???????????????????# #?? | | ??????? =?????????????????????####" F"####+#?? | | ??????###+###???????????????????????#""""##?# #?? | | ####### #?????????????????##????######### #?? | | ############################ ### | | o k hhh ! ^ ^ | | ### ######+#####@;#+#####+## | | ### ## #??# "# #| # ! | | # ########??# ## h# # ! | | # #?????????# """ ## ;! ########## ! | | ] # #?????????# """ ## # ! #????????# | | # #?????????# """ ## # #????????#**=^ | | # #?????????# ## # """ #?????????*!= | | # #?????????# """ ## # """ #?????????*! | | + #?????????# """ ##;### """ #????????? | | # #?????????#??"" ####?# #????????? | | ### #????????????? #????##########????????? "" | | ??# #????????????? #??????????????????????? "" | | ??# #????????????? ???????????????????????? "? | | ??# #?????????????##????????????????????????? ?? | | ??# #??????????????????????????????????????????? | | ??# #??????????????????????????????????????????? | | ??? #??????????????????????????????????????????? | | ??? #??????????????????????????????????????????? | | ??? !#??????????????????????????????????????????? | | ??? #??????????????????????????????????????????? | | ???" #??????????????????????????????????????????? | | ???" #??????????????????????????????????????????? | | ???? ???????????????????????????????????????????? | | ?????????????????????????????????????????????????? | | ?????????????????????????????????????????????????? | +----------------------------------------------------+ Best States ------------- Heat Dissipation 40 Energy Generation 19 Energy Capacity 315 Matter Stores 300 Matter Capacity 300 Sight Range 22 Robot Scan Range 15 Terrain Scan Density 10 Jamming Range 14 Armor Coverage 450 Resistance: TH 20 Core Shielding 20 Propulsion Shielding 33 Phase Shifting 5 Evasion (%) 50 Targeting Accuracy 5 Melee Accuracy 5 Recoil Reduction 5 Offensive Hacking 10 Defensive Hacking 11 Authchip Count 1 Item Schematics ----------------- Cargo Storage Unit | -10/Materials | Hacked Huge Storage Unit | -9/Storage | Hacked Lgt. Regenerative Plating | -6/Data Miner | Free Enh. Armored Leg | -6/Data Miner | Free Combat Drone Bay | -6/Data Miner | Free Exp. Heat Sink | -6/Data Miner | Free Impulse Thruster | -6/Data Miner | Free Adv. Coolant Injector | -6/Data Miner | Free Railgun | -6/Data Miner | Free Kinetic Spear | -6/Data Miner | Free Adv. Shield Generator | -6/Data Miner | Free Adv. Cryofiber Web | -6/Data Miner | Free Imp. Remote Shield | -6/Data Miner | Free Linear Accelerator | -6/Data Miner | Free Adv. Component Analysis Suite | -6/Data Miner | Free Robot Schematics ------------------ B-60 Warrior | -6/Data Miner | Free L-41 Fighter | -6/Data Miner | Free B-48 Gladiator | -6/Data Miner | Free A-15 Conveyor | -6/Data Miner | Free E-15 Imp | -6/Data Miner | Free Fabricated ------------ Cargo Storage Unit | x1 | -6/Factory | Authchip Huge Storage Unit | x1 | -6/Factory Kinetic Spear | x1 | -5/Factory | Authchip Repaired ---------- Greatsword | 5% | -5/Factory Studied --------- None Alien Tech Used ----------------- None Achievements -------------- None Challenges ------------ None Game ------ Seed FlakThrowingPulseblaster Manual? 0 Play Time 01:04:32 Cumulative 592.6 hours Start 2026.09.05 @ 03:09:33 End 2026.09.05 @ 04:07:30 Sessions 1 Manual Loads 0 Difficulty Rogue Special Mode None Game No. 495 Rogue 495 Adventurer 0 Explorer 0 Win Type - Total 19 Types 11/0/3/1/0/0/0/2/0/2 Lore% 69 Gallery% 72 Achievement% 69 Wizard Run 0 Options --------- Layout 1 ASCII 0 Keyboard 0 Movement Mouse Keybinds 0 Fullscreen 2 Font 24/Cog Map View 50x35 Zoom Use 29% Tactical HUD 1 Map Filters NONE Filters NONE Steam 1 RUN: 1d4521a3-1139-4e86-aacd-7034df0dc2e1